fUST/lending_fUST_20240510
["ID","MTS","AMOUNT","RATE_DAILY","PERIOD"]
[326705191,1715270593056,2086.45912019,0.00015,2]
[326705192,1715270600492,154.75239617,0.00015,2]
[326705193,1715270613066,2086.45912019,0.00015,2]
[326705194,1715270616318,155.48077218,0.00015,2]
[326705195,1715270636987,1743.28620714,0.00015,2]
[326705197,1715270698842,154.69061876,0.00015,2]
[326705198,1715270720783,196.66123461,0.00015,2]
[326705199,1715270843193,-175.656042,0.0001589,2]
[326705200,1715270843214,-165.248838,0.0001589,2]
[326705201,1715270843236,-176.098899,0.00019455,2]
[326705202,1715270843259,-24890.0,0.00019892,2]
[326705203,1715270843280,-248.950054,0.00019912,2]
[326705204,1715270843302,-1764.62889948,0.00020812,2]
[326705205,1715270843323,-2630.39141956,0.00020911,2]
[326705206,1715270843345,-1464.59454276,0.00020912,2]
[326705207,1715270843365,-534.95004245,0.00020912,2]
[326705208,1715270843386,-1646.39871341,0.00020912,2]
[326705209,1715270843407,-444.38348379,0.00020912,2]
[326705210,1715270843429,-1463.45572688,0.00020912,2]
[326705211,1715270843449,-315.31138865,0.00020912,2]
[326705212,1715270843469,-158.60020702,0.00020913,2]
[326705213,1715270843493,-166.666666,0.00021644,2]
[326705214,1715270843517,-160.84991,0.00021656,2]
[326705215,1715270843539,-181.484267,0.00021656,2]
[326705216,1715270843560,-166.666666,0.00021918,2]
[326705217,1715270843582,-166.666666,0.00022431,2]
[326705218,1715270843603,-160.84991,0.00022739,2]
[326705219,1715270843623,-181.484267,0.00022739,2]
[326705220,1715270843646,-166.666666,0.00022944,2]
[326705221,1715270843669,-166.666666,0.00023456,2]
[326705222,1715270843691,-166.666666,0.00023969,2]
[326705223,1715270843712,-166.666666,0.00024482,2]
[326705224,1715270843734,-150.0,0.0002516,3]
[326705225,1715270843754,-150.0,0.0002516,3]
[326705226,1715270843774,-166.666666,0.00026986,2]
[326705227,1715270843796,-186.81844012,0.00027,2]
[326705228,1715270843817,-7307.43555431,0.00028,2]
[326705229,1715270843837,-221.16623315,0.00028,2]
[326705230,1715270843858,-466.94535979,0.00034,4]
[326705231,1715270843879,-1332.38134881,0.00035,4]
[326705232,1715270843958,-278.66483423,0.00036411,2]
[326705233,1715270843980,-1284.31,0.00036501,3]
[326705234,1715270844001,-2449.1,0.00036501,3]
[326705235,1715270844026,-2040.92,0.00036501,3]
[326705236,1715270844183,-1700.77,0.00036501,3]
[326705237,1715270844204,-150.0,0.000379,2]
[326705238,1715270844228,-384.80291894,0.00039897,31]
[326705239,1715270844340,-14552.98337809,0.00039898,2]
[326705240,1715270844416,-608.47002678,0.00039998,60]
[326705241,1715270844437,-255.77075854,0.00039999,4]
[326705242,1715270844458,-207.94376246,0.00039999,4]
[326705243,1715270844482,-163.14922274,0.00039999,4]
[326705244,1715270844504,-12285.81876044,0.0004,3]
[326705436,1715271043195,-150.0,0.00025122,3]
[326705438,1715271043205,-166.666666,0.00029876,2]
[326705439,1715271043216,-166.666666,0.0003069,2]
[326705440,1715271043226,-166.666666,0.00031505,2]
[326705441,1715271043236,-166.666666,0.00032319,2]
[326705442,1715271043245,-166.666666,0.00033134,2]
[326705443,1715271043255,-166.666666,0.00033949,2]
[326705444,1715271043265,-466.94535979,0.00034,4]
[326705445,1715271043274,-1332.38134881,0.00035259,4]
[326705446,1715271043284,-1417.31,0.00036501,3]
[326705447,1715271043294,-160.0,0.00036511,30]
[326705448,1715271043303,-27160.2347031,0.00036511,30]
[326705455,1715271044444,-72839.7652959,0.00036511,30]
[326705457,1715271044453,-157.96408012,0.00036511,30]
[326705459,1715271044465,-164.91553669,0.00039999,31]
[326705461,1715271044477,-3596.58820374,0.0004,2]
[326705715,1715271047837,-31.00695814,0.0004,2]
[326705716,1715271047848,-14047.32974141,0.0004,2]
[326705717,1715271047860,-261.81,0.0004,2]
[326705718,1715271047871,-282.5,0.0004,2]
[326705725,1715271561864,154.69061876,9.999e-05,2]
[326705734,1715272041161,-165.572857,0.0001589,2]
[326705735,1715272041182,-3056.74707553,0.00017682,2]
[326705736,1715272041203,-254.275563,0.00017683,2]
[326705737,1715272041223,-183.12182719,0.00018525,2]
[326705738,1715272041259,-18841.2327751,0.00018626,2]
[326705739,1715272041284,-2628.34812808,0.00018627,2]
[326705740,1715272041308,-15069.1012196,0.00018953,2]
[326705741,1715272041334,-166.666668,0.00021644,2]
[326705742,1715272041356,-150.0,0.00025173,3]
[326705743,1715272041378,-150.0,0.00025173,3]
[326705744,1715272041399,-171.364116,0.00026986,2]
[326705745,1715272041422,-166.666666,0.000317,2]
[326705746,1715272041444,-166.666666,0.00032564,2]
[326705747,1715272041466,-166.666666,0.00033428,2]
[326705748,1715272041486,-466.94535979,0.00034,4]
[326705749,1715272041508,-166.666666,0.00034292,2]
[326705750,1715272041531,-166.666666,0.00035157,2]
[326705751,1715272041552,-166.666666,0.00036021,2]
[326705752,1715272041575,-1564.18100921,0.00039898,2]
[326705753,1715272041596,-222.9318674,0.000399,2]
[326705754,1715272041618,-2605.13830082,0.00039958,5]
[326705755,1715272041640,-194.10867769,0.00039998,4]
[326705756,1715272041661,-1335.336446,0.00039998,4]
[326705757,1715272041682,-830.25500651,0.00039998,4]
[326705758,1715272041703,-1425.13119939,0.00039998,4]
[326705759,1715272041725,-5210.0,0.00039998,4]
[326705760,1715272041748,-1396.02575092,0.00039998,4]
[326705761,1715272041773,-894.24108922,0.00039998,2]
[326705762,1715272041797,-218.20211624,0.00039998,4]
[326705763,1715272041818,-605.75672009,0.00039998,4]
[326705764,1715272041838,-154.73694719,0.00039998,4]
[326705765,1715272041860,-500.0,0.00039999,31]
[326705766,1715272041882,-314.2698051,0.00039999,31]
[326705767,1715272041903,-500.0,0.00039999,31]
[326705768,1715272041926,-500.0,0.00039999,31]
[326705769,1715272041946,-15751.70247799,0.0004,2]
[326705770,1715272041967,-284.17581835,0.0004,30]
[326705771,1715272041988,-360.32703405,0.0004,2]
[326705772,1715272042008,-1998.47383179,0.0004,120]
[326705773,1715272042034,-1004.92617875,0.0004,4]
[326705774,1715272196508,198.835497,0.0001589,2]
[326705848,1715272238447,-150.0,0.00025215,3]
[326705850,1715272238459,-177.27223,0.00031638,2]
[326705851,1715272238468,-1709.4519652,0.00032321,2]
[326705853,1715272238477,-177.27223,0.00033076,2]
[326705855,1715272238487,-177.27223,0.00034514,2]
[326705856,1715272238496,-177.27223,0.00035951,2]
[326705857,1715272238506,-160.0,0.00036518,30]
[326705858,1715272238516,-1368.65838312,0.000399,2]
[326705859,1715272238525,-27694.90817817,0.0004,4]
[326705860,1715272238535,-1231.12292359,0.0004,4]
[326705861,1715272238545,-165.248838,0.0004011,2]
[326705862,1715272238555,-1998.47383179,0.00045,120]
[326705863,1715272238564,-151.0,0.00045,120]
[326705864,1715272238575,-165.572857,0.00046164,2]
[326705865,1715272238585,-166.0,0.00047,90]
[326705866,1715272238595,-150.0,0.00047286,60]
[326705867,1715272238608,-222.93186738,0.00048125,2]
[326705868,1715272238618,-154.69061876,0.00048766,10]
[326705869,1715272238627,-151.0,0.00048767,120]
[326705870,1715272238637,-166.0,0.00048904,90]
[326705871,1715272238646,-5000.0,0.0005,50]
[326705872,1715272238656,-5000.0,0.0005,50]
[326705873,1715272238666,-154.69061876,0.0005,30]
[326705874,1715272238676,-411.32093084,0.0005,60]
[326705878,1715272240742,-3784.83401906,0.0005,60]
[326705880,1715272240752,-189.65191827,0.0005,120]
[326705881,1715272240761,-502.93369727,0.0005,120]
[326705882,1715272240770,-23720.71059613,0.0005,120]
[326705883,1715272240780,-1998.47383179,0.0005,120]
[326705884,1715272240789,-151.0,0.0005,120]
[326705885,1715272240798,-799.999999,0.00052,120]
[326705886,1715272240807,-151.0,0.00052521,120]
[326705887,1715272240818,-466.94535979,0.00052999,4]
[326705888,1715272240827,-300.0,0.00053,120]
[326705889,1715272240838,-218.49627252,0.00054,120]
[326705890,1715272240847,-171.364116,0.00054486,2]
[326705891,1715272240856,-1953.47289712,0.00055,120]
[326705892,1715272240865,-1998.47383179,0.00055,120]
[326705893,1715272240874,-166.206683,0.00056256,2]
[326705894,1715272240883,-151.0,0.00056274,120]
[326705895,1715272240892,-222.93186738,0.0005635,2]
[326705896,1715272240901,-5000.0,0.00057,50]
[326705897,1715272240910,-3054.54205563,0.00057877,4]
[326705898,1715272240919,-30440.0,0.00057878,120]
[326705899,1715272240928,-207.67510825,0.0006,120]
[326705900,1715272241054,-799.67425198,0.0006,120]
[326705902,1715272241064,-1998.47383179,0.0006,120]
[326705904,1715272241074,-151.0,0.00060027,120]
[326705907,1715272241083,-346.00119283,0.000616,120]
[326705909,1715272241093,-168.0,0.00061619,120]
[326705911,1715272241103,-151.0,0.00063781,120]
[326705912,1715272241113,-165.248838,0.00064329,2]
[326705913,1715272241122,-222.93186738,0.00064574,2]
[326705914,1715272241132,-1998.47383179,0.00065,120]
[326705915,1715272241143,-151.0,0.00067534,120]
[326705916,1715272241152,-250.0,0.00068493,120]
[326705917,1715272241162,-500.0,0.00068493,120]
[326705918,1715272241171,-290.91035955,0.00068493,120]
[326705919,1715272241181,-250.0,0.00068493,30]
[326705920,1715272241190,-500.0,0.00068493,31]
[326705921,1715272241199,-206.40925056,0.00068493,32]
[326705922,1715272241213,-500.0,0.00068493,120]
[326705923,1715272241222,-263.53554576,0.00069,7]
[326705924,1715272241231,-150.0,0.00069,120]
[326705925,1715272241240,-150.0,0.00069358,120]
[326705926,1715272241249,-2000.0,0.000699,120]
[326705927,1715272241257,-569.58,0.0006999,3]
[326705928,1715272241266,-500.0,0.00069999,120]
[326705929,1715272241275,-500.0,0.00069999,120]
[326705930,1715272241285,-299.97287786,0.00069999,120]
[326705931,1715272241294,-414.47819636,0.00069999,120]
[326705932,1715272241308,-625.15312159,0.00069999,120]
[326705933,1715272241317,-500.0,0.00069999,120]
[326705934,1715272241327,-201.44111606,0.00069999,120]
[326705935,1715272241336,-5000.0,0.0007,50]
[326705936,1715272241346,-633.20670469,0.0007,120]
[326705937,1715272241356,-1998.47383179,0.0007,120]
[326705938,1715272241365,-2541.65214634,0.0007,120]
[326705939,1715272241375,-65846.32649231,0.0007,120]
[326705940,1715272241388,-500.0,0.00071232,120]
[326705941,1715272241398,-12437.49475284,0.00071287,51]
[326705942,1715272241407,-21510.62152496,0.00071287,61]
[326705943,1715272241566,-1368.55454557,0.00071287,61]
[326705945,1715272241577,-151.0,0.00071288,120]
[326705947,1715272241588,-200.0,0.00071796,120]
[326705949,1715272241598,-157.79545443,0.00072128,120]
[326705951,1715272241611,-12637.47673795,0.00072128,120]
[326706177,1715272244675,-548.86161063,0.00072128,120]
[326706180,1715272244687,-1804.323423,0.00072128,120]
[326706185,1715272244699,-3012.47132687,0.00072128,120]
[326706191,1715272244822,-1285.19341376,0.00072128,120]
[326706192,1715272244834,-756.51739255,0.00072128,120]
[326706292,1715272246876,-500.0,0.00069999,120]
[326706293,1715272246885,-500.0,0.00069999,120]
[326706294,1715272246894,-500.0,0.00069999,120]
[326706295,1715272246903,-517.95967963,0.00069999,120]
[326706296,1715272246912,-500.0,0.00069999,120]
[326706297,1715272246921,-500.0,0.00069999,120]
[326706298,1715272246932,-500.0,0.00069999,120]
[326706299,1715272246942,-500.0,0.00069999,120]
[326706300,1715272246953,-380.884615,0.00072128,120]
[326706316,1715273243196,-166.562438,0.0001589,2]
[326706317,1715273243220,-150.0,0.00025372,3]
[326706318,1715273243244,-166.666666,0.00026986,2]
[326706319,1715273243266,-466.94535979,0.00034,4]
[326706320,1715273243291,-5365.6563605,0.0004,2]
[326706321,1715273243316,-2630.824007,0.00047233,2]
[326706322,1715273243341,-150.0,0.00047429,60]
[326706323,1715273243364,-154.69061876,0.0004834,10]
[326706324,1715273243387,-1352.3524625,0.00048391,2]
[326706325,1715273243410,-166.666666,0.00048986,2]
[326706326,1715273243433,-289.23252311,0.0004988,30]
[326706327,1715273243456,-154.69061876,0.0005,30]
[326706328,1715273243480,-962.90174546,0.0005,60]
[326706329,1715273243618,-291.39771783,0.0005,30]
[326706330,1715273243642,-166.394239,0.00050374,2]
[326706331,1715273243662,-1011.30002229,0.000587,60]
[326706332,1715273243684,-671.6679891,0.0006,12]
[326706333,1715273243706,-543.68,0.000626,60]
[326706334,1715273243728,-769.81891506,0.00065697,60]
[326706335,1715273243749,-500.0,0.00068493,120]
[326706336,1715273243770,-150.0,0.00069,120]
[326706337,1715273243792,-1256.83207107,0.00069,14]
[326706338,1715273243813,-150.0,0.00069486,120]
[326706339,1715273243834,-1851.25643789,0.0006998,120]
[326706340,1715273243854,-166.666666,0.00070986,120]
[326706341,1715273243874,-500.0,0.00071232,120]
[326706342,1715273243894,-504.19337631,0.00071767,30]
[326706343,1715273243915,-164.41361162,0.00072128,7]
[326706344,1715273243937,-21014.41148538,0.00072128,120]
[326706345,1715273243957,-151.0,0.00072356,120]
[326706346,1715273243978,-310.16381766,0.00072898,7]
[326706347,1715273243998,-3126.53,0.00072989,3]
[326706348,1715273244018,-2605.44,0.00072989,3]
[326706349,1715273244039,-2081.73290894,0.00072997,7]
[326706350,1715273244060,-5081.39324063,0.00072997,7]
[326706351,1715273255453,450.0,0.00019178,10]
[326706352,1715273321670,665.93712971,0.0002,10]
[326706353,1715273354097,-168.44346738,0.00032272,4]
[326706354,1715273363367,169.485136,0.00026986,2]
[326706355,1715273426319,150.0,0.00025435,3]
[326706357,1715273432620,-160.0,0.0003646,30]
[326706359,1715273432630,-150.0,0.00047486,60]
[326706361,1715273432643,-154.69061876,0.0005,30]
[326706363,1715273432653,-169.485136,0.00054486,2]
[326706365,1715273432662,-173.0156128,0.00063928,120]
[326706367,1715273432672,-272.38076791,0.00065697,60]
[326706369,1715273432682,-150.0,0.00069538,120]
[326706371,1715273432693,-24144.8015935,0.00071,120]
[326706418,1715273439354,802.08990641,0.0003,120]
[326706420,1715273440364,-20855.1984065,0.00071,120]
[326706421,1715273440374,-27035.31078098,0.00072819,120]
[326706423,1715273440383,-1197.57608523,0.00072951,28]
[326706425,1715273440393,-727.18904065,0.00072997,7]
[326706427,1715273440402,-701.3012313,0.00072997,7]
[326706430,1715273440411,-466.94535979,0.00072997,7]
[326706434,1715273440421,-296.82571593,0.00072997,12]
[326706436,1715273440431,-221.28872477,0.00072997,7]
[326706437,1715273440441,-708.30703355,0.00072998,7]
[326706438,1715273440452,-15688.54119062,0.00072998,7]
[326706439,1715273440461,-67098.3656156,0.00072999,120]
[326706440,1715273440470,-221.07074464,0.00073051,2]
[326706441,1715273440479,-166.394239,0.00073251,2]
[326706442,1715273440489,-500.0,0.00073972,120]
[326706443,1715273440498,-221.07074461,0.00074761,2]
[326706444,1715273440508,-1998.15794393,0.00075,120]
[326706445,1715273440517,-151.0,0.00075041,120]
[326706446,1715273440528,-284.09470331,0.00075999,120]
[326706447,1715273440537,-165.572857,0.00076438,120]
[326706448,1715273440546,-198.835497,0.00076438,120]
[326706449,1715273440556,-166.562438,0.00076438,120]
[326706450,1715273440649,-221.07074461,0.00076471,2]
[326706451,1715273440660,-178.48569676,0.000765,120]
[326706452,1715273440669,-500.0,0.00076712,120]
[326706453,1715273440679,-150.0,0.00076999,120]
[326706454,1715273440689,-1989.06171162,0.00077999,61]
[326706455,1715273440699,-300.61762117,0.00077999,120]
[326706456,1715273440708,-500.0,0.00077999,120]
[326706457,1715273440718,-337.54593647,0.00077999,120]
[326706458,1715273440729,-500.0,0.00077999,120]
[326706459,1715273440739,-500.0,0.00077999,120]
[326706460,1715273440749,-205.38790389,0.00077999,120]
[326706461,1715273440758,-150.0,0.00077999,120]
[326706462,1715273440768,-150.0,0.00077999,120]
[326706463,1715273440779,-53352.7067295,0.00078,120]
[326706657,1715273444444,-271.01855953,0.0005,30]
[326706658,1715273444454,-2526.78,0.00072989,3]
[326706660,1715273444463,-5357.74444381,0.00078,120]
[326706662,1715273444474,-1733.88079646,0.00078,120]
[326706663,1715273444483,-27019.84093774,0.00078,60]
[326706664,1715273444504,-132.88299515,0.00078,60]
[326706667,1715273444516,-983.04284546,0.00078,60]
[326706668,1715273444525,-221.07074461,0.0007818,2]
[326706669,1715273444534,-5017.58640993,0.000785,120]
[326706678,1715273447257,-173.0156128,0.00077398,120]
[326706679,1715273447268,-12241.83385974,0.000785,120]
[326706680,1715273447281,-626.02966503,0.000785,120]
[326706681,1715273447294,-16770.0,0.000785,120]
[326706682,1715273447305,-9161.1,0.000785,120]
[326706695,1715274343169,-165.248838,0.0001589,2]
[326706696,1715274343189,-13807.3687619,0.0002,5]
[326706697,1715274343212,-6950.83759617,0.00020509,2]
[326706698,1715274343232,-22471.5056851,0.0002051,2]
[326706699,1715274343254,-310.7303785,0.00020956,2]
[326706700,1715274343275,-166.666666,0.0002186,2]
[326706701,1715274343296,-192.7,0.00025608,5]
[326706702,1715274343316,-153.0,0.00043752,2]
[326706703,1715274343336,-192.7,0.00047644,60]
[326706704,1715274343356,-166.666666,0.00049203,2]
[326706705,1715274343378,-1000.0,0.0005,30]
[326706706,1715274343397,-1000.0,0.0006,30]
[326706707,1715274343417,-192.7,0.00069679,120]
[326706708,1715274343436,-1000.0,0.0007,60]
[326706709,1715274343460,-1783.10968118,0.000729,120]
[326706710,1715274343484,-500.0,0.00072998,120]
[326706711,1715274343508,-1870.24,0.00075,120]
[326706712,1715274343529,-2000.0,0.00075,120]
[326706713,1715274343552,-500.0,0.00075738,120]
[326706714,1715274343577,-165.248838,0.00076438,120]
[326706715,1715274343599,-166.666666,0.00076545,120]
[326706716,1715274343621,-5000.0,0.00078,50]
[326706717,1715274343641,-13579.18,0.00078,120]
[326706718,1715274343662,-500.0,0.00078478,120]
[326706719,1715274343683,-53276.11887315,0.000785,120]
[326706723,1715274425098,-153.0,0.00043752,2]
[326706724,1715274425119,-20353.21608753,0.00078,120]
[326706725,1715274442114,-7679.55455526,0.00077999,7]
[326706726,1715274442135,-24646.78391247,0.00078,120]
[326706727,1715274442156,-200.0,0.00078343,34]
[326706728,1715274442177,-84128.66940227,0.000785,120]
[326706734,1715274632853,-160.0,0.00036807,30]
[326706739,1715274632867,-310.7303785,0.00051975,2]
[326706743,1715274632881,-166.666666,0.00076712,120]
[326706745,1715274632891,-68.7810425,0.000785,120]
[326706772,1715274633812,-18709.88074738,0.000785,120]
[326706773,1715274633827,-151.0,0.00078795,120]
[326706774,1715274633842,-100590.35920935,0.00078888,120]
[326706775,1715274633855,-20000.0,0.00078913,120]
[326706776,1715274633866,-150.0,0.00078989,120]
[326706777,1715274633876,-73986.45753006,0.00079,120]
[326706778,1715274633893,-39959.23156971,0.00079,120]
[326706779,1715274635182,192.7,0.00025643,3]
[326706791,1715274639344,-192.7,0.00047675,60]
[326706793,1715274639356,-192.7,0.00069708,120]
[326706795,1715274639369,-4600.598166,0.00079,120]
[326706798,1715274639385,-81453.71273423,0.00079,120]
[326706800,1715274639396,-221.07074461,0.00079799,2]
[326706802,1715274639407,-7597.4710793,0.000798,60]
[326706804,1715274639418,-1966.77017511,0.00079878,30]
[326706820,1715274639553,-95361.79516675,0.0007988,120]
[326707100,1715274642621,-12404.0,0.0007988,120]
[326707350,1715274645246,-1185079.12646779,0.0007988,120]
[326707352,1715274645258,-32779.75648702,0.0007988,120]
[326707354,1715274645274,-24628.75376722,0.0007988,120]
[326707368,1715274645343,-68046.88412285,0.0007988,120]
[326707370,1715274645354,-6191.7,0.0007988,120]
[326707375,1715274645424,-59701.65237596,0.0007988,120]
[326707376,1715274645435,-26141.83223158,0.0007988,120]
[326707497,1715274647404,-173.0156128,0.00079001,120]
[326707500,1715274647414,-138.31710453,0.0007988,120]
[326708478,1715274698666,172.368329,0.0001589,2]
[326708479,1715274827292,1336.61268754,9.999e-05,2]
[326708480,1715274848174,409.82935884,9.999e-05,2]
[326708481,1715275139908,-393.62326099,0.00020911,2]
[326708482,1715275139950,-1338.77799021,0.00020912,2]
[326708483,1715275139993,-56588.40849513,0.00020913,2]
[326708484,1715275140034,-311.2,0.00025901,5]
[326708485,1715275140076,-311.2,0.0004791,60]
[326708486,1715275140119,-151.0,0.0005,120]
[326708487,1715275163949,218.609004,0.00036226,2]
[326708488,1715275637156,-198.86734,0.0001589,2]
[326708489,1715275637178,-162.19860967,0.00025799,2]
[326708490,1715275637202,-259.3,0.00025899,5]
[326708491,1715275637238,-995.16423633,0.00035382,2]
[326708498,1715275748379,-237.7,0.00025905,5]
[326708499,1715275772127,-21476.34144877,0.00035382,2]
[326708500,1715275772150,-237.7,0.00047914,60]
[326708501,1715275772171,-166.394239,0.00051024,2]
[326708502,1715275772196,-621.5,0.00054795,120]
[326708503,1715275772218,-150.1,0.00054795,120]
[326708504,1715275772246,-172.368329,0.00056256,2]
[326708505,1715275785707,621.5,0.00054795,120]
[326708506,1715275790692,150.0,0.00025905,5]
[326708507,1715275791336,150.0,0.00047914,60]
[326708508,1715275803205,150.1,0.00054795,120]
[326708509,1715275820255,621.5,0.00054795,120]
[326708510,1715275829744,150.0,0.00025931,5]
[326708511,1715275830689,150.0,0.00047937,60]
[326708514,1715275832217,-151.0,0.00037494,30]
[326708516,1715275832226,-150.0,0.00069944,120]
[326708518,1715275832235,-664.78592975,0.0007,120]
[326708521,1715275832244,-151.0,0.00072986,120]
[326708526,1715275832254,-150.0,0.0007499,109]
[326708531,1715275832262,-1000.0,0.00075,2]
[326708535,1715275832271,-198.86734,0.00076438,120]
[326708538,1715275832280,-166.666666,0.00076712,120]
[326708540,1715275832289,-600.0,0.00077335,7]
[326708543,1715275832298,-500.0,0.00077999,120]
[326708545,1715275832307,-1047.87907455,0.00078901,28]
[326708547,1715275832317,-7740.692027,0.0007899,7]
[326708549,1715275832327,-500.34282909,0.00079,120]
[326708552,1715275832338,-30000.0,0.00079,120]
[326708554,1715275832349,-174.06892906,0.00079001,120]
[326708557,1715275832358,-1783.10968118,0.000797,120]
[326708560,1715275832367,-150.0,0.0007971,119]
[326708562,1715275832378,-193.32662214,0.0007978,120]
[326708564,1715275832387,-193.82,0.0007978,120]
[326708566,1715275832396,-154.81129771,0.0007978,120]
[326708568,1715275832405,-154.81129771,0.0007978,120]
[326708570,1715275832417,-154.81129771,0.0007978,120]
[326708572,1715275832427,-154.81129771,0.0007978,120]
[326708574,1715275832436,-154.81129771,0.0007978,120]
[326708576,1715275832445,-154.81129771,0.0007978,120]
[326708578,1715275832456,-154.81129771,0.0007978,120]
[326708588,1715275832547,-154.81129771,0.0007978,120]
[326708590,1715275832556,-154.81129771,0.0007978,120]
[326708592,1715275832565,-155.31,0.0007978,120]
[326708594,1715275832575,-1091.40967912,0.00079798,60]
[326708596,1715275832584,-240.64308688,0.00079799,2]
[326708598,1715275832594,-3964.26032842,0.000798,60]
[326708600,1715275832603,-7948.04730527,0.00079807,40]
[326708602,1715275832613,-2375.37,0.0007987,3]
[326708604,1715275832622,-5851.23,0.00079879,30]
[326708606,1715275832631,-5851.23,0.00079879,30]
[326708608,1715275832641,-5851.23,0.00079879,30]
[326708610,1715275832650,-5851.23,0.00079879,30]
[326708611,1715275832659,-5851.23,0.00079879,30]
[326708613,1715275832668,-5851.23,0.00079879,30]
[326708615,1715275832676,-5851.23,0.00079879,30]
[326708617,1715275832686,-5851.23,0.00079879,30]
[326708619,1715275832696,-5851.23,0.00079879,30]
[326708621,1715275832706,-5851.23,0.00079879,30]
[326708623,1715275832716,-500.0,0.00079879,120]
[326708625,1715275832725,-500.0,0.00079879,120]
[326708627,1715275832735,-500.0,0.00079879,120]
[326708629,1715275832744,-500.0,0.00079879,120]
[326708631,1715275832754,-500.0,0.00079879,120]
[326708633,1715275832763,-500.0,0.00079879,120]
[326708635,1715275832773,-295.10433957,0.00079879,120]
[326708637,1715275832782,-501.26378094,0.00079879,120]
[326708639,1715275832792,-500.0,0.00079879,120]
[326708641,1715275832801,-2464.4038062,0.0007988,60]
[326708643,1715275832811,-41807.59470361,0.0007988,120]
[326708646,1715275832824,-6647.34603046,0.0007988,120]
[326708707,1715275838608,150.1,0.00054795,120]
[326708708,1715275838627,-500.0,0.00079879,120]
[326708710,1715275838636,-500.0,0.00079879,120]
[326708712,1715275838646,-500.0,0.00079879,120]
[326708714,1715275838656,-500.0,0.00079879,120]
[326708716,1715275838665,-500.0,0.00079879,120]
[326708717,1715275838674,-500.0,0.00079879,120]
[326708718,1715275838683,-500.0,0.00079879,120]
[326708719,1715275838693,-500.0,0.00079879,120]
[326708720,1715275838703,-500.0,0.00079879,120]
[326708721,1715275838712,-500.0,0.00079879,120]
[326708722,1715275838721,-500.0,0.00079879,120]
[326708723,1715275838730,-500.0,0.00079879,120]
[326708724,1715275838739,-500.0,0.00079879,120]
[326708725,1715275838749,-500.0,0.00079879,120]
[326708726,1715275838759,-500.0,0.00079879,120]
[326708727,1715275838768,-500.0,0.00079879,120]
[326708728,1715275838777,-500.0,0.00079879,120]
[326708729,1715275838787,-500.0,0.00079879,120]
[326708730,1715275838796,-500.0,0.00079879,120]
[326708731,1715275838805,-500.0,0.00079879,120]
[326708732,1715275838814,-500.0,0.00079879,120]
[326708733,1715275838824,-500.0,0.00079879,120]
[326708734,1715275838833,-500.0,0.00079879,120]
[326708735,1715275838843,-500.0,0.00079879,120]
[326708736,1715275838854,-500.0,0.00079879,120]
[326708737,1715275838863,-500.0,0.00079879,120]
[326708738,1715275838872,-500.0,0.00079879,120]
[326708739,1715275838880,-500.0,0.00079879,120]
[326708740,1715275838889,-500.0,0.00079879,120]
[326708741,1715275838974,-500.0,0.00079879,120]
[326708742,1715275838985,-500.0,0.00079879,120]
[326708743,1715275838994,-334.7,0.00079879,120]
[326708744,1715275839004,-42232.14648073,0.0007988,120]
[326708745,1715275839018,-59930.1978818,0.0007988,120]
[326708746,1715275839031,-324742.49662814,0.0007988,120]
[326708747,1715275839044,-16149.70137438,0.0007988,120]
[326708748,1715275839056,-19521.2780172,0.0007988,120]
[326708749,1715275839069,-10232.055,0.0007988,120]
[326708751,1715275841243,-38615.5667841,0.0007988,120]
[326708755,1715275841835,-155043.23415604,0.0007988,120]